bitfinex/quotes_SOLUSD_20251009
["timestamp","ask_amount","ask_price","bid_price","bid_amount"]
[1760016988184,0.2,224.64,224.59,10.87647521]
[1760016988798,0.2,224.64,224.6,0.7]
[1760016989003,0.2,224.64,224.62,10.87647521]
[1760016989199,0.2,224.64,224.62,44.25647521]
[1760016989404,0.2,224.64,224.63,11.57647521]
[1760016990202,0.2,224.64,224.63,16.02824033]
[1760016992478,1e-08,224.64,224.63,16.02824033]
[1760016993302,0.2,224.74,224.67,31.67647521]
[1760016993491,0.2,224.74,224.63,38.54000355]
[1760016993492,0.2,224.74,224.72,10.87647521]
[1760016993688,0.2,224.74,224.73,48.66625939]
[1760016994098,0.2,224.74,224.73,49.36625939]
[1760016995281,1e-08,224.74,224.73,49.36625939]
[1760016995481,0.2,224.82,224.77,10.87647521]
[1760016995710,0.2,224.82,224.8,4.44839857]
[1760016995894,0.2,224.82,224.79,10.87647521]
[1760016996080,0.2,224.82,224.79,16.0250545]
[1760016996286,0.2,224.82,224.73,0.7]
[1760016996287,3.31061654,224.81,224.73,0.7]
[1760016996502,3.31061654,224.79,224.73,10.87647521]
[1760016996686,3.31061654,224.77,224.73,10.87647521]
[1760016996885,3.31061654,224.79,224.73,11.57647521]
[1760016997507,7.75925571,224.79,224.73,11.57647521]
[1760016997888,4.44863917,224.79,224.73,16.02622209]
[1760016998215,3.31061654,224.79,224.73,16.02622209]
[1760016998413,3.31061654,224.8,224.73,16.02622209]
[1760016998599,0.2,224.82,224.73,16.02622209]
[1760016998907,4.44820824,224.81,224.73,16.02622209]
[1760016999891,3.51061654,224.82,224.73,16.02622209]
[1760016999892,0.2,224.82,224.77,10.87647521]
[1760017000205,0.2,224.82,224.79,10.87647521]
[1760017001003,0.2,224.82,224.79,11.57647521]
[1760017001695,0.2,224.82,224.79,16.02506812]
[1760017002014,0.2,224.82,224.81,10.87647521]
[1760017002503,2.93167449,224.92,224.85,20.8]
[1760017002681,2.93167449,224.93,224.86,44.79647521]
[1760017002884,10.68814465,224.93,224.86,44.79647521]
[1760017003188,7.75649548,224.93,224.86,44.79647521]
[1760017003689,0.2,224.94,224.88,10.87647521]
[1760017003902,4.6456376,224.94,224.88,10.87647521]
[1760017004097,0.2,224.94,224.87,10.87647521]
[1760017004301,0.2,224.94,224.88,0.7]
[1760017004900,0.2,224.94,224.91,10.87647521]
[1760017005111,0.2,224.94,224.93,10.87647521]
[1760017005506,0.2,224.94,224.93,11.55647521]
[1760017005695,0.2,224.94,224.93,16.0023028]
[1760017006722,0.2,224.96,224.95,31.67647521]
[1760017007094,0.2,224.96,224.95,64.87647521]
[1760017007807,0.2,224.96,224.95,70.00190752]
[1760017008002,0.2,224.96,224.95,65.55647521]
[1760017008414,0.2,224.96,224.95,70.00190752]
[1760017009209,0.2,224.96,224.95,32.35647521]
[1760017009408,0.2,224.96,224.95,65.55647521]
[1760017009605,0.2,224.96,224.95,70.00190752]
[1760017011139,0.2,225.0,224.99,31.67647521]
[1760017011504,0.2,225.0,224.99,65.51647521]
[1760017011724,0.2,225.0,224.99,69.96111719]
[1760017012125,0.2,225.0,224.99,36.80111719]
[1760017012306,0.2,225.0,224.99,69.96111719]
[1760017012501,0.2,225.0,224.99,36.80111719]
[1760017012701,0.2,225.0,224.99,69.96111719]
[1760017013128,0.2,225.0,224.99,36.12111719]
[1760017013304,0.2,225.0,224.99,69.28111719]
[1760017013625,0.2,225.0,224.99,33.16]
[1760017013820,0.2,225.0,224.99,44.03647521]
[1760017014402,6.08885372,225.0,224.91,11.11512777]
[1760017014609,6.08885372,225.0,223.15,79.4]
[1760017014610,5.16885372,224.96,224.88,16.24362642]
[1760017014804,0.72,224.96,224.89,10.87647521]
[1760017015028,0.72,224.99,224.91,10.87647521]
[1760017015229,5.88885372,224.99,224.91,10.87647521]
[1760017015908,4.64445301,225.0,224.93,10.87647521]
[1760017015909,0.2,225.0,224.93,10.87647521]
[1760017016111,0.2,225.0,224.97,10.87647521]
[1760017016308,0.2,225.0,224.99,10.87647521]
[1760017016914,0.2,225.0,224.99,33.18]
[1760017017231,0.2,225.0,224.99,44.05647521]
[1760017018441,0.2,225.0,224.99,48.50111719]
[1760017018621,0.2,225.0,224.99,49.18111719]
[1760017018826,0.2,225.0,224.99,69.98111719]
[1760017019013,0.2,225.0,224.99,49.18111719]
[1760017020422,1e-08,225.0,224.99,49.18111719]
[1760017020727,0.2,225.05,225.03,31.67647521]
[1760017020918,0.2,225.05,225.04,10.87647521]
[1760017021124,0.2,225.05,225.04,44.69647521]
[1760017021434,0.2,225.05,225.04,44.01647521]
[1760017021954,0.2,225.05,225.04,48.46012967]
[1760017022234,0.2,225.05,225.04,49.14012967]
[1760017022441,0.2,225.1,225.08,31.67647521]
[1760017022616,0.2,225.1,225.09,44.01647521]
[1760017022824,0.2,225.1,225.09,44.69647521]
[1760017023009,0.2,225.1,225.09,44.01647521]
[1760017023213,0.2,225.1,225.09,44.69647521]
[1760017024025,0.2,225.1,225.09,15.99914258]
[1760017024335,0.2,225.1,225.09,49.11914258]
[1760017025225,0.2,225.15,225.13,10.87647521]
[1760017025416,0.2,225.15,225.14,43.97647521]
[1760017026116,0.2,225.15,225.14,48.43815594]
[1760017026320,0.2,225.15,225.14,49.11815594]
[1760017027040,4.43912534,225.27,225.16,10.87647521]
[1760017027228,4.43912534,225.27,225.16,44.03647521]
[1760017027429,4.43912534,225.27,225.16,44.71647521]
[1760017027822,5.88885372,225.28,225.16,44.71647521]
[1760017028021,0.72,225.28,225.16,49.1577614]
[1760017028542,1e-08,225.17,225.16,49.1577614]
[1760017028727,0.72,225.32,225.16,49.1577614]
[1760017029044,0.72,225.31,225.2,31.67647521]
[1760017029238,0.72,225.31,225.25,10.87647521]
[1760017029438,0.72,225.31,225.27,10.87647521]
[1760017029738,5.16885372,225.28,225.2,20.8]
[1760017029934,0.72,225.27,225.21,44.01647521]
[1760017030745,5.15914045,225.27,225.21,44.01647521]
[1760017030942,5.16885372,225.25,225.12,11.10471987]
[1760017031142,5.88885372,225.24,225.17,10.87647521]
[1760017031453,5.16885372,225.2,225.12,0.68]
[1760017031630,5.16885372,225.17,225.13,24.46]
[1760017031834,15.5369342,225.27,225.14,33.12]
[1760017031835,5.16885372,225.15,225.14,33.12]
[1760017032143,5.16885372,225.15,225.05,4.443457]
[1760017032144,4.44168073,225.14,225.11,33.14]
[1760017032332,0.72,225.13,225.12,33.14]
[1760017032534,5.16885372,225.15,225.12,33.14]
[1760017032730,5.88885372,225.15,225.12,33.14]
[1760017032919,5.88885372,225.14,225.1,10.87647521]
[1760017033121,0.72,225.13,225.11,33.14]
[1760017033320,0.72,225.12,225.09,33.14]
[1760017033521,0.72,225.11,225.02,20.8]
[1760017033824,0.72,225.1,225.04,10.87647521]
[1760017034023,0.72,225.1,224.97,39.08499134]
[1760017034024,4.44286475,225.08,224.97,39.08499134]
[1760017034335,5.16885372,225.06,224.99,10.87647521]
[1760017034651,5.16885372,225.06,224.98,33.14]
[1760017034849,5.16885372,225.04,224.99,10.87647521]
[1760017035025,5.16885372,225.02,225.0,33.12]
[1760017035225,0.72,225.03,224.99,10.87647521]
[1760017035442,5.16885372,225.02,225.0,33.12]
[1760017035628,5.16885372,225.02,224.92,0.67]
[1760017035629,5.16885372,225.01,224.92,0.67]
[1760017035820,5.16885372,225.01,224.8,34.64]
[1760017035821,5.16885372,224.97,224.93,33.1]
[1760017036016,5.16885372,224.95,224.93,33.1]
[1760017036223,0.72,224.96,224.93,33.1]
[1760017036224,5.16885372,224.94,224.93,33.1]
[1760017036627,5.88885372,224.94,224.82,0.67]
[1760017036831,5.88885372,224.94,224.86,20.8]
[1760017036832,0.72,224.94,224.86,20.8]
[1760017037026,5.16885372,224.89,224.81,4.4482007]
[1760017037230,5.16885372,224.93,224.82,33.79]
[1760017037447,5.16885372,224.94,224.84,10.87647521]
[1760017037649,5.16885372,224.94,224.83,0.67]
[1760017037650,5.16885372,224.93,224.88,10.87647521]
[1760017037958,5.16885372,224.91,224.83,0.67]
[1760017038135,0.72,224.9,224.84,33.12]
[1760017038453,0.72,224.9,224.82,33.14]
[1760017038671,0.72,224.9,224.79,0.67]
[1760017038672,0.72,224.9,224.83,33.14]
[1760017038953,5.16885372,224.86,224.83,33.14]
[1760017039252,5.16885372,224.84,224.72,0.67]
[1760017039428,5.16885372,224.79,224.72,33.83]
[1760017039630,0.72,224.85,224.72,33.83]
[1760017039844,0.72,224.85,224.73,15.42617965]
[1760017040037,5.16885372,224.83,224.76,4.44919024]
[1760017040240,0.72,224.88,224.78,10.87647521]
[1760017040430,5.16885372,224.85,224.78,10.87647521]
[1760017040750,5.16885372,224.86,224.78,10.87647521]
[1760017040939,5.16885372,224.85,224.78,10.87647521]
[1760017041147,5.16885372,224.86,224.78,10.87647521]
[1760017041328,16.28226503,224.96,224.78,10.87647521]
[1760017041329,5.16885372,224.87,224.79,0.66]
[1760017041533,5.16885372,224.86,224.79,0.66]
[1760017042137,5.16885372,224.86,224.81,10.87647521]
[1760017042329,5.16885372,224.89,224.83,10.87647521]
[1760017042854,0.69,224.91,224.83,10.87647521]
[1760017042855,5.16885372,224.92,224.83,10.87647521]
[1760017043052,5.16885372,224.91,224.83,10.87647521]
[1760017043226,5.16885372,224.88,224.78,20.8]
[1760017043538,0.69,224.9,224.78,20.8]
[1760017043539,5.16885372,224.85,224.79,44.13647521]
[1760017044336,0.69,224.94,224.81,10.87647521]
[1760017044541,5.16885372,224.9,224.81,10.87647521]
[1760017044737,5.16885372,224.89,224.81,10.87647521]
[1760017044936,20.8,224.96,224.8,5.10839857]
[1760017044937,5.16885372,224.85,224.8,10.87647521]
[1760017045143,5.16885372,224.86,224.82,10.87647521]
[1760017045451,5.16885372,224.84,224.79,10.87647521]
[1760017045637,5.16885372,224.84,224.78,20.8]
[1760017045638,5.16885372,224.8,224.78,33.28]
[1760017045953,0.69,224.83,224.78,33.28]
[1760017046143,5.16885372,224.81,224.78,33.28]
[1760017046544,5.16885372,224.79,224.74,10.87647521]
[1760017046741,5.16885372,224.75,224.73,33.38]
[1760017047059,5.16885372,224.74,224.73,33.38]
[1760017047646,0.69,224.78,224.73,33.38]
[1760017047850,0.69,224.77,224.73,33.38]
[1760017048053,5.16885372,224.74,224.73,33.38]
[1760017048252,5.85885372,224.74,224.73,0.1]
[1760017048448,5.16885372,224.74,224.73,0.1]
[1760017049163,5.85885372,224.74,224.73,0.1]
[1760017049345,5.16885372,224.74,224.73,0.1]
[1760017050662,20.8,224.79,224.73,0.1]
[1760017050839,5.16885372,224.77,224.73,0.1]
[1760017051035,5.16885372,224.74,224.73,0.1]
[1760017051945,5.85885372,224.74,224.73,0.1]
[1760017052550,5.16885372,224.74,224.73,0.1]
[1760017052760,10.3084399,224.74,224.73,0.1]
[1760017053572,5.85885372,224.74,224.73,0.1]
[1760017053952,5.16885372,224.74,224.73,0.1]
[1760017054571,5.85885372,224.74,224.73,0.1]
[1760017055365,5.85885372,224.74,224.73,1e-08]
[1760017055577,5.85885372,224.74,224.61,0.66]
[1760017055578,20.8,224.7,224.57,0.66]
[1760017055751,5.16885372,224.61,224.58,21.48]
[1760017056069,5.16885372,224.59,224.55,10.87647521]
[1760017056289,0.69,224.64,224.54,4.45346825]
[1760017056577,5.16885372,224.58,224.53,33.84]
[1760017056760,5.16885372,224.58,224.54,0.66]
[1760017057083,20.8,224.65,224.55,5.11322695]
[1760017057372,33.18,224.7,224.55,5.11322695]
[1760017057373,4.45050275,224.7,224.61,10.87647521]
[1760017057557,3.58293291,224.83,224.61,10.87647521]
[1760017057558,48.76800995,224.82,224.65,10.87647521]
[1760017057875,5.16885372,224.75,224.67,10.87647521]
[1760017058048,5.16885372,224.74,224.67,10.87647521]
[1760017058257,20.8,224.78,224.67,10.87647521]
[1760017058453,5.16885372,224.76,224.68,0.66]
[1760017058653,5.16885372,224.77,224.69,10.87647521]
[1760017058951,0.69,224.82,224.71,10.87647521]
[1760017059152,5.16885372,224.8,224.73,10.87647521]
[1760017059355,5.16885372,224.81,224.74,0.66]
[1760017059579,20.8,224.83,224.75,10.87647521]
[1760017059880,5.16885372,224.83,224.76,0.66]
[1760017060178,5.16885372,224.85,224.77,10.87647521]
[1760017060380,5.16885372,224.86,224.79,10.87647521]
[1760017060579,5.16885372,224.86,224.81,10.87647521]
[1760017060764,5.16885372,224.87,224.82,0.66]
[1760017061174,5.16885372,224.86,224.82,0.66]
[1760017061358,5.16885372,224.87,224.82,0.66]
[1760017061554,4.44582759,224.93,224.83,0.66]
[1760017061755,5.16885372,224.9,224.83,0.66]
[1760017061973,5.16885372,224.88,224.83,0.66]
[1760017062763,5.16885372,224.88,224.84,0.72]
[1760017062977,9.61642593,224.85,224.77,0.72]
[1760017063180,5.16885372,224.78,224.73,0.72]
[1760017063363,5.16885372,224.78,224.74,10.87647521]
[1760017063683,4.44757221,224.85,224.76,10.87647521]
[1760017063684,5.16885372,224.8,224.76,10.87647521]
[1760017063882,5.16885372,224.8,224.76,11.59647521]
[1760017064083,3.29267898,224.82,224.77,0.72]
[1760017064285,3.29267898,224.82,224.76,10.87647521]
[1760017064585,3.29267898,224.82,224.76,11.59647521]
[1760017064883,3.29267898,224.81,224.76,11.59647521]
[1760017065071,3.29267898,224.8,224.76,11.59647521]
[1760017065282,3.29267898,224.81,224.76,10.87647521]
[1760017065471,3.29267898,224.81,224.76,11.59647521]
[1760017066296,3.29267898,224.8,224.76,10.87647521]
[1760017066587,3.29267898,224.8,224.76,11.59647521]
[1760017066785,4.44807545,224.82,224.76,10.87647521]
[1760017066786,3.29267898,224.81,224.76,10.87647521]
[1760017066987,4.44704002,224.87,224.78,10.87647521]
[1760017067169,4.44704002,224.87,224.8,15.32487378]
[1760017067170,3.29267898,224.86,224.8,15.32487378]
[1760017067369,3.29267898,224.85,224.8,10.87647521]
[1760017067895,3.29267898,224.87,224.82,10.87647521]
[1760017068092,46.45274166,225.0,224.84,10.87647521]
[1760017068093,4.44586043,224.93,224.84,10.87647521]
[1760017068389,3.29267898,224.91,224.84,10.87647521]
[1760017068713,3.29267898,224.92,224.86,10.87647521]
[1760017068997,25.95562561,224.95,224.82,11.59647521]
[1760017069183,3.29267898,224.89,224.84,10.87647521]
[1760017069485,22.22305167,225.0,224.81,10.87647521]
[1760017069486,3.29267898,224.85,224.81,10.87647521]
[1760017069701,0.71,224.88,224.81,10.87647521]
[1760017069702,3.29267898,224.84,224.81,10.87647521]
[1760017069866,3.29267898,224.85,224.81,10.87647521]
[1760017070067,3.29267898,224.82,224.77,0.72]
[1760017070262,3.29267898,224.78,224.69,0.72]
[1760017070492,0.71,224.81,224.69,0.72]
[1760017070493,3.29267898,224.74,224.7,33.16]
[1760017070694,3.29267898,224.74,224.7,0.72]
[1760017070896,3.29267898,224.76,224.72,10.87647521]
[1760017071075,3.29267898,224.78,224.73,0.72]
[1760017071274,3.29267898,224.78,224.72,15.3263823]
[1760017071476,3.29267898,224.78,224.72,16.0463823]
[1760017071664,3.29267898,224.77,224.72,16.0463823]
[1760017071992,3.29267898,224.81,224.74,10.87647521]
[1760017072184,3.29267898,224.83,224.76,10.87647521]
[1760017072388,4.44602525,224.92,224.78,10.87647521]
[1760017072568,3.29267898,224.89,224.8,10.87647521]
[1760017072771,4.44602525,224.92,224.81,0.72]
[1760017073090,3.29267898,224.88,224.81,0.72]
[1760017073477,3.29267898,224.89,224.83,10.87647521]
[1760017073673,21.51,224.93,224.83,44.05647521]
[1760017073674,5.1559949,224.93,224.83,44.05647521]
[1760017073870,5.1559949,224.93,224.85,10.87647521]
[1760017073871,4.4459949,224.93,224.85,10.87647521]
[1760017074078,3.29267898,224.91,224.85,10.87647521]
[1760017074293,0.71,224.96,224.84,10.87647521]
[1760017074473,3.29267898,224.93,224.87,10.87647521]
[1760017074876,0.71,224.97,224.87,10.87647521]
[1760017075079,3.29267898,224.93,224.87,10.87647521]
[1760017075279,3.29267898,224.9,224.84,10.87647521]
[1760017075502,3.29267898,224.92,224.85,0.72]
[1760017075801,3.29267898,224.93,224.85,0.72]
[1760017076170,3.29267898,224.92,224.85,0.72]
[1760017076369,3.29267898,224.95,224.85,0.72]
[1760017076603,3.29267898,224.94,224.85,0.72]
[1760017076894,3.29267898,224.93,224.85,0.72]
[1760017077099,3.29267898,224.94,224.85,0.72]
[1760017077477,7.73832104,224.94,224.87,10.87647521]
[1760017078088,3.29267898,224.94,224.87,11.59647521]
[1760017078683,7.73833486,224.94,224.87,11.59647521]
[1760017078870,3.29267898,224.92,224.87,33.1]
[1760017079068,3.29267898,224.92,224.88,10.87647521]
[1760017079273,4.44565588,224.94,224.84,10.87647521]
[1760017079274,3.29267898,224.89,224.84,10.87647521]
[1760017079470,3.29267898,224.85,224.82,10.87647521]
[1760017079700,3.29267898,224.85,224.82,11.59647521]
[1760017080305,3.29267898,224.86,224.82,11.59647521]
[1760017080506,3.29267898,224.83,224.78,10.87647521]
[1760017080673,2.93471697,224.88,224.8,10.87647521]
[1760017080874,19.99999999,225.0,224.82,10.87647521]
[1760017080875,2.93471697,224.91,224.82,10.87647521]
[1760017081178,2.93471697,224.91,224.78,53.9]
[1760017081179,2.93471697,224.93,224.86,10.87647521]
[1760017081385,3.29267898,224.91,224.86,10.87647521]
[1760017081581,3.29267898,224.9,224.86,10.87647521]
[1760017081888,3.29267898,224.94,224.88,10.87647521]
[1760017082090,3.29267898,224.92,224.88,10.87647521]
[1760017082296,4.44544671,224.95,224.69,19.99999999]
[1760017082297,3.29267898,224.89,224.83,0.72]
[1760017082493,3.29267898,224.85,224.8,33.12]
[1760017082712,3.29267898,224.81,224.75,0.72]
[1760017082914,3.29267898,224.81,224.77,10.87647521]
[1760017083223,3.29267898,224.8,224.77,10.87647521]
[1760017083427,3.29267898,224.78,224.69,15.32705155]
[1760017083584,20.8,224.86,224.74,20.8]
[1760017083785,2.94173041,224.85,224.75,11.59647521]
[1760017084099,3.29267898,224.8,224.74,33.16]
[1760017084287,4.44726621,224.86,224.71,0.72]
[1760017084288,3.29267898,224.75,224.71,0.72]
[1760017084493,3.29267898,224.73,224.68,33.16]
[1760017084798,70.96135319,224.86,224.7,10.87647521]
[1760017084799,3.29267898,224.79,224.7,10.87647521]
[1760017085015,3.29267898,224.79,224.72,10.87647521]
[1760017085389,4.44859646,224.79,224.72,10.87647521]
[1760017085591,3.29267898,224.8,224.74,10.87647521]
[1760017085790,3.29267898,224.83,224.76,10.87647521]
[1760017085990,3.29267898,224.79,224.75,33.2]
[1760017086202,3.29267898,224.78,224.71,0.72]
[1760017086395,3.29267898,224.76,224.71,10.87647521]
[1760017086591,3.29267898,224.77,224.72,0.72]
[1760017086785,2.94124174,224.84,224.74,10.87647521]
[1760017086999,3.29267898,224.82,224.76,10.87647521]
[1760017087206,3.29267898,224.83,224.76,10.87647521]
[1760017087490,3.29267898,224.82,224.76,10.87647521]
[1760017087703,3.29267898,224.82,224.7,54.02]
[1760017087704,3.29267898,224.79,224.73,10.87647521]
[1760017087920,3.29267898,224.78,224.73,10.87647521]
[1760017088119,3.29267898,224.79,224.71,10.87647521]
[1760017088301,3.29267898,224.79,224.73,10.87647521]
[1760017088616,4.44760718,224.84,224.75,10.87647521]
[1760017088823,3.29267898,224.82,224.77,10.87647521]
[1760017089116,3.29267898,224.82,224.76,33.94]
[1760017089117,3.29267898,224.8,224.76,33.22]
[1760017089499,0.71,224.85,224.76,33.22]
[1760017089500,3.29267898,224.81,224.77,0.72]
[1760017089816,3.29267898,224.83,224.78,0.72]
[1760017089989,4.44741218,224.85,224.77,10.87647521]
[1760017089990,3.29267898,224.85,224.79,0.72]
[1760017090209,3.29267898,224.84,224.77,10.87647521]
[1760017090394,3.29267898,224.84,224.79,10.87647521]
[1760017090599,20.8,224.9,224.76,37.66916702]
[1760017090600,3.29267898,224.87,224.81,10.87647521]
[1760017090806,3.29267898,224.88,224.81,10.87647521]
[1760017091014,3.29267898,224.86,224.81,10.87647521]
[1760017091223,3.29267898,224.84,224.77,11.59647521]
[1760017091411,3.29267898,224.84,224.8,10.87647521]
[1760017091610,7.74043137,224.84,224.8,10.87647521]
[1760017091810,3.29267898,224.84,224.8,10.87647521]
[1760017092119,3.29267898,224.85,224.81,0.72]
[1760017092318,4.44681607,224.88,224.82,0.72]
[1760017092319,3.29267898,224.88,224.82,0.72]
[1760017093026,3.29267898,224.86,224.8,10.87647521]
[1760017093232,3.29267898,224.84,224.8,10.87647521]
[1760017093398,3.29267898,224.81,224.74,10.87647521]
[1760017093598,3.29267898,224.77,224.76,10.87647521]
[1760017093798,3.29267898,224.77,224.75,33.2]
[1760017094026,0.7,224.81,224.7,44.09647521]
[1760017094221,15.56800995,224.82,224.53,19.99999999]
[1760017094222,3.29267898,224.71,224.65,0.72]
[1760017094426,21.5,224.74,224.62,0.72]
[1760017094608,3.29267898,224.68,224.64,33.22]
[1760017094802,21.5,224.74,224.64,33.22]
[1760017095003,21.5,224.74,224.55,15.586729]
[1760017095004,3.29267898,224.65,224.55,15.586729]
[1760017095341,3.29267898,224.69,224.58,0.72]
[1760017095502,3.29267898,224.71,224.59,31.67647521]
[1760017095702,0.7,224.76,224.59,31.67647521]
[1760017095703,20.8,224.74,224.61,10.87647521]
[1760017095910,0.7,224.76,224.64,10.87647521]
[1760017095911,3.29267898,224.76,224.64,10.87647521]
[1760017096215,3.29267898,224.76,224.66,10.87647521]
[1760017096410,3.29267898,224.74,224.66,10.87647521]
[1760017096621,3.29267898,224.71,224.66,10.87647521]
[1760017096931,0.7,224.8,224.68,10.87647521]
[1760017097131,3.29267898,224.74,224.7,10.87647521]
[1760017097626,3.29267898,224.75,224.71,0.72]
[1760017097799,3.29267898,224.72,224.69,33.26]
[1760017098004,3.29267898,224.7,224.66,10.87647521]
[1760017098210,3.29267898,224.68,224.64,33.28]
[1760017098717,3.29267898,224.68,224.64,34.0]
[1760017098911,3.29267898,224.68,224.64,38.45155673]
[1760017099224,3.29267898,224.69,224.65,11.59647521]
[1760017099429,3.29267898,224.74,224.66,0.72]
[1760017099928,3.29267898,224.74,224.68,10.87647521]
[1760017099929,3.29267898,224.72,224.68,10.87647521]
[1760017100318,3.29267898,224.72,224.66,5.17113873]
[1760017100319,3.29267898,224.69,224.61,0.72]
[1760017100514,3.29267898,224.68,224.63,10.87647521]
[1760017100833,3.29267898,224.68,224.65,10.87647521]
[1760017101036,0.7,224.72,224.65,10.87647521]
[1760017101243,3.29267898,224.68,224.65,10.87647521]
[1760017101737,3.29267898,224.68,224.62,33.28]
[1760017101738,3.29267898,224.72,224.67,15.32736356]
[1760017101917,3.29267898,224.71,224.67,11.59647521]
[1760017102109,20.8,224.74,224.65,33.26]
[1760017102427,3.29267898,224.67,224.65,33.26]
[1760017103005,3.29267898,224.66,224.57,0.72]
[1760017103234,3.29267898,224.63,224.58,44.13647521]
[1760017103612,3.29267898,224.63,224.6,10.87647521]
[1760017103830,3.29267898,224.63,224.58,33.26]
[1760017103831,3.29267898,224.62,224.58,33.26]
[1760017104018,3.29267898,224.62,224.59,10.87647521]
[1760017104227,3.29267898,224.62,224.59,11.59647521]
[1760017104423,4.450938,224.68,224.6,0.72]
[1760017104632,3.29267898,224.67,224.6,0.72]
[1760017105308,3.29267898,224.64,224.57,0.72]
[1760017105505,0.7,224.66,224.48,0.1]
[1760017105822,3.29267898,224.61,224.57,10.87647521]
[1760017106029,3.29267898,224.6,224.56,10.87647521]
[1760017106434,3.29267898,224.61,224.57,0.72]
[1760017107104,3.29267898,224.61,224.57,33.22]
[1760017107435,3.29267898,224.6,224.57,33.22]
[1760017108876,4.45136879,224.65,224.59,10.87647521]
[1760017109009,4.4507821,224.68,224.6,0.72]
[1760017109219,3.29267898,224.66,224.6,0.72]
[1760017109442,3.29267898,224.65,224.6,0.72]
[1760017109740,20.8,224.73,224.61,10.87647521]
[1760017109911,3.29267898,224.7,224.63,10.87647521]
[1760017110241,7.74303398,224.71,224.64,37.65146248]
[1760017110415,3.29267898,224.7,224.64,37.65146248]
[1760017110610,0.7,224.76,224.65,10.87647521]
[1760017110839,3.29267898,224.73,224.65,11.59647521]
[1760017111030,3.29267898,224.72,224.65,11.59647521]
[1760017111337,0.7,224.8,224.69,10.87647521]
[1760017111515,0.7,224.8,224.7,33.2]
[1760017111516,3.29267898,224.75,224.7,33.2]
[1760017111716,3.29267898,224.75,224.7,33.92]
[1760017111934,0.7,224.85,224.71,11.59647521]
[1760017112116,3.29267898,224.8,224.73,10.87647521]
[1760017112445,3.29267898,224.8,224.68,20.8]
[1760017112446,3.29267898,224.74,224.68,0.72]
[1760017112654,3.29267898,224.73,224.72,33.2]
[1760017112831,3.29267898,224.75,224.72,33.92]
[1760017113144,3.29267898,224.76,224.72,33.2]
[1760017113526,3.29267898,224.76,224.72,33.92]
[1760017114149,3.29267898,224.73,224.66,0.72]
[1760017114330,3.29267898,224.73,224.67,44.07647521]
[1760017114647,5.147805,224.83,224.69,10.87647521]
[1760017114858,3.29267898,224.72,224.7,0.72]
[1760017115062,3.29267898,224.72,224.5,0.1]
[1760017115063,3.29267898,224.72,224.65,0.72]
[1760017115247,3.29267898,224.66,224.5,4.55424925]
[1760017115544,20.8,224.72,224.55,0.72]
[1760017115743,0.7,224.68,224.55,0.72]
[1760017115951,20.8,224.72,224.58,10.87647521]
[1760017115952,3.29267898,224.67,224.58,10.87647521]
[1760017116124,3.29267898,224.67,224.6,10.87647521]
[1760017116327,4.44998879,224.72,224.6,44.19647521]
[1760017116525,22.00269747,224.98,224.6,44.19647521]
[1760017116526,3.29267898,224.71,224.62,10.87647521]
[1760017116720,0.7,224.75,224.64,10.87647521]
[1760017117038,3.29267898,224.71,224.66,10.87647521]
[1760017117426,3.29267898,224.7,224.66,0.72]
[1760017117926,3.29267898,224.68,224.63,10.87647521]
[1760017118127,3.29267898,224.64,224.61,10.87647521]
[1760017118331,3.29267898,224.64,224.61,11.59647521]
[1760017118732,3.29267898,224.63,224.61,10.87647521]
[1760017119140,0.7,224.7,224.61,11.59647521]
[1760017119447,3.29267898,224.63,224.61,10.87647521]
[1760017119753,3.29267898,224.64,224.61,11.59647521]
[1760017119950,3.29267898,224.64,224.61,15.32843875]
[1760017120123,3.29267898,224.7,224.62,0.72]
[1760017120545,20.8,224.76,224.62,0.72]
[1760017120546,3.29267898,224.68,224.62,0.72]
[1760017120750,3.29267898,224.65,224.61,10.87647521]
[1760017120929,3.29267898,224.65,224.61,11.59647521]
[1760017121247,3.29267898,224.64,224.6,33.32]
[1760017121448,3.29267898,224.61,224.58,10.87647521]
[1760017121657,3.29267898,224.59,224.56,33.32]